Cogmind - Beta 16 @@@ ROGUE MODE // 2025.12.31 @ 09:07:30 Player: EuleBlut Result: Destroyed by S-10 Pest with Light Assault Rifle Performance ------------- Evolutions (0) 0 Regions Visited (1) 200 Robots Destroyed (14) 70 Value Destroyed (334) 334 Prototype IDs (0) 0 Alien Tech Used (0) 0 Bonus (0) 0 TOTAL SCORE: 604 Bonus ------- None Cogmind --------- Core Integrity 0/250 Matter 266/300 Energy 125/125 System Corruption 0% Temperature Cool (0) Movement Rolling (80) Location -10/Materials Parts ------- > --- POWER (1) -------- Light Ion Engine > --- PROPULSION (2) --- Wheel > --- UTILITY (2) ------ Small Storage Unit > --- WEAPON (2) ------- Small Laser > --- INVENTORY (8) ---- EM Pulse Gun Small Laser Light Assault Rifle Light Assault Rifle Datajack Peak State ------------ > --- POWER ------------ Ion Engine > --- PROPULSION ------- Wheel Compact Wheel > --- UTILITY ---------- Small Storage Unit Targeting Computer > --- WEAPON ----------- Assault Rifle Light Assault Rifle > --- INVENTORY -------- Light Ion Engine Light Assault Rifle Light Assault Rifle Datajack [Rating: 7] Favorites ----------- Power Ion Engine Engine Ion Engine Propulsion Wheel Wheel Wheel Utility Small Storage Unit Storage Small Storage Unit Processor Targeting Computer Weapon Assault Rifle Energy Gun EM Pulse Gun Ballistic Gun Assault Rifle Build | -11 -10 ------- Run | Yrd Mat Slots Evolved . | . . Power . | . . Propulsion . | . . Utility . | . . Weapon . | . . Parts Attached 12 | 6 6 Power 2 | 1 1 Engine 2 | 1 1 Core . | . . Reactor . | . . Propulsion 3 | 2 1 Treads . | . . Leg . | . . Wheel 3 | 2 1 Hover . | . . Flight . | . . Utility 2 | 1 1 Device . | . . Storage 1 | 1 . Processor 1 | . 1 Hackware . | . . Protection . | . . Artifact . | . . Weapon 5 | 2 3 Energy Gun 3 | 1 2 Energy Cannon . | . . Ballistic Gun 2 | 1 1 Ballistic Cannon . | . . Launcher . | . . Special Weapon . | . . Impact Weapon . | . . Slashing Weapon . | . . Piercing Weapon . | . . Special Melee Weapon . | . . Unidentified Prototypes . | . . Parts Lost 8 | . 8 Power 1 | . 1 Propulsion 2 | . 2 Utility 1 | . 1 Weapon 4 | . 4 Highest Loss Streak 7 | . 7 To Critical Strikes . | . . Average Backups 4 | 1 4 Power . | . . Propulsion . | . . Utility . | . . Weapon 2 | 1 2 Tool/Special . | . . Unused Backups 5 | . 5 Power . | . . Propulsion . | . . Utility . | . . Weapon 4 | . 4 Tool/Special 1 | . 1 Average Slot Usage (%) 77 | . 77 Engine 13 | . 13 Wheel 21 | . 21 Storage 14 | . 14 Processor 2 | . 2 Energy Gun 6 | . 6 Ballistic Gun 17 | . 17 Peak Build Rating 7 | 6 7 Average Rating 5 | 4 5 On Entrance 3 | . 6 Avg Prop Armor Cover (%) . | . . Naked Turns . | . . Heaviest Build 14 | 14 14 Greatest Support 26 | 26 26 Greatest Overweight (x) 4 | . 4 Average Overweight (x) . | . . Largest Inventory Capacity 8 | 8 8 Average Capacity 7 | 6 8 Most Carried 8 | 4 8 Average Carried 4 | 1 5 Final Capacity 8 | 8 8 Final Carried 5 | 2 5 Class Distribution -------------------- 100% | Mutant Dominant Class ---------------- Mutant | -10/Materials Resources | -11 -10 ----------- Run | Yrd Mat Matter Collected 420 | 260 160 Remotely . | . . Salvage Created 462 | . 462 Parts 27 | . 27 Haulers Intercepted . | . . Recyclers Shooed 2 | . 2 Parts Field Recycled . | . . Retrieved Matter . | . . Parts Self-Destructed . | . . Prevented . | . . Parts Restored . | . . Kills | -11 -10 ------- Run | Yrd Mat Combat Hostiles Destroyed 10 | . 10 Guns 9 | . 9 AOE 1 | . 1 Classes Destroyed 5 | . 5 Worker 1 | . 1 Tunneler 1 | . 1 Watcher 2 | . 2 Swarmer 3 | . 3 Grunt 7 | . 7 Best Kill Streak 6 | . 6 Combat Bots Only 5 | . 5 Max Kills in Single Turn 1 | . 1 Gunslinging . | . . Exploded 1 | . 1 Melee . | . . Uniques/NPCs Destroyed . | . . Combat | -11 -10 -------- Run | Yrd Mat Hostile Shots Fired 114 | . 114 Missed 34 | . 34 Hits 80 | . 80 Projectile 80 | . 80 Critical Strikes 1 | . 1 Damage Taken 893 | . 893 Core 253 | . 253 Absorbed by Shields . | . . Core Remaining (%) 100 | 100 . Volleys Fired 72 | . 72 Largest 2 | . 2 Hottest 80 | . 80 Shots Fired 111 | . 111 Gun 111 | . 111 Cannon . | . . Launcher . | . . Special . | . . Kinetic 75 | . 75 Thermal 26 | . 26 Explosive . | . . Electromagnetic 10 | . 10 Robot Hit Streak 8 | . 8 Robot Miss Streak 4 | . 4 Penetration Max . | . . Secondary Targets 1 | . 1 Max Gunslinging Chain 1 | . 1 Shots Hit Robots 73 | . 73 Core Hits 30 | . 30 Critical Kills . | . . Critical Parts Destroyed . | . . Critical Strikes . | . . Melee Attacks . | . . Impact . | . . Slashing . | . . Piercing . | . . Sneak Attacks . | . . Combat Hostiles . | . . Follow-up Attacks . | . . Damage Inflicted 890 | . 890 Guns 840 | . 840 Cannons . | . . Explosions 50 | . 50 Melee . | . . Ramming . | . . Kinetic 559 | . 559 Thermal 253 | . 253 Explosive . | . . Electromagnetic 78 | . 78 Impact . | . . Slashing . | . . Piercing . | . . Highest Corruption . | . . Average Corruption . | . . Corruption Purged . | . . Corruption Blocked . | . . Overload Shots . | . . Overflow Damage . | . . Projectiles . | . . Explosions . | . . Melee . | . . Knockbacks . | . . Impact . | . . Kinetic . | . . Secondary . | . . Self-Inflicted Damage . | . . Shots . | . . Rammed . | . . Targets Rammed . | . . Kicked . | . . Crushed . | . . Highest Temperature 102 | . 102 Average Temperature 34 | . 34 Received Heat Transfer 414 | . 414 Siege Activations . | . . Martial Activations . | . . Shielding Activations . | . . Robots Disrupted . | . . Combat Hostiles . | . . Robots Corrupted . | . . Combat Hostiles . | . . Parts Fried . | . . Impact Corruptions . | . . Robots Melted . | . . Combat Hostiles . | . . Parts Melted . | . . Heat Transferred 475 | . 475 Parts Sabotaged . | . . Parts Stolen . | . . Parts Stripped . | . . Power Chain Reactions 1 | . 1 Alert | -11 -10 ------- Run | Yrd Mat Maximum Alert Level . | . . Low Security (%) 100 | 100 100 Level 1 . | . . Level 2 . | . . Level 3 . | . . Level 4 . | . . Level 5 . | . . High Security . | . . Max Security . | . . Peak Influence 80 | . 80 Initial . | . . Average 23 | . 25 Influence Increases 274 | . 274 Destroy 0b10 Robot/C 200 | . 200 Destroy 0b10 Robot/NC 20 | . 20 Destroy Leader 44 | . 44 Destroy Structure 10 | . 10 Influence Decreases 212 | . 212 Time Decay 142 | . 142 Lost Part 70 | . 70 Squads Dispatched 2 | . 2 Investigation . | . . Extermination . | . . Reinforcement 2 | . 2 Assault . | . . Garrison . | . . Intercept . | . . Searches Triggered . | . . Construction Impeded . | . . Haulers Reinforced . | . . Active Scanning Responses . | . . Cargo Convoy Interrupts . | . . Stealth | -11 -10 --------- Run | Yrd Mat Distress Signals 2 | . 2 Communications Jammed . | . . Distress Signals . | . . Times Spotted 22 | . 22 Peak Tracking Total 5 | . 5 Tactical Retreats . | . . Traps | -11 -10 ------- Run | Yrd Mat Traps Triggered . | . . Indirectly . | . . Trap Hack Attempts . | . . Triggered . | . . Disarmed . | . . Reprogrammed . | . . Reused . | . . Traps Extracted . | . . Installed . | . . Triggered . | . . Machines | -11 -10 ---------- Run | Yrd Mat Machines Disabled . | . . Max in Single Turn . | . . Machines Repaired . | . . Machines Dismantled . | . . Machines Sabotaged . | . . Overloaded Fab Kills . | . . Hacking | -11 -10 --------- Run | Yrd Mat Machines Accessed . | . . Terminals . | . . Fabricators . | . . Repair Stations . | . . Recycling Units . | . . Scanalyzers . | . . Garrison Access . | . . Total Hacks . | . . Successful . | . . Failed . | . . Catastrophic . | . . Database Lockouts . | . . Manual . | . . Terminals . | . . Fabricators . | . . Repair Stations . | . . Recycling Units . | . . Scanalyzers . | . . Garrison Access . | . . Terminal Hacks . | . . Fabricator Hacks . | . . Repair Station Hacks . | . . Recycling Unit Hacks . | . . Scanalyzer . | . . Garrison Access Hacks . | . . Unauthorized Hacks . | . . Terminals . | . . Fabricators . | . . Repair Stations . | . . Recycling Units . | . . Scanalyzers . | . . Garrison Access . | . . Data Cores Recovered . | . . Used . | . . Hacking Detections . | . . Full Trace Events . | . . Feedback Events . | . . Feedback Blocked . | . . Robot Schematics Acquired . | . . Robots Built . | . . Authchips . | . . Time . | . . Total Robot Build Rating . | . . Part Schematics Acquired . | . . Parts Built . | . . Authchips . | . . Time . | . . Total Part Build Rating . | . . Part Studies Acquired . | . . Parts Repaired . | . . Time . | . . Parts Recycled . | . . Recycled Matter . | . . Retrieved Matter . | . . Retrieved Components . | . . Parts Scanalyzed . | . . Part Schematics Acquired . | . . Parts Damaged . | . . Bothacking | -11 -10 ------------ Run | Yrd Mat Used RIF Installer . | . . Robots Hacked . | . . Non-combat . | . . Combat . | . . Robot Hacks Applied . | . . Relay Couplers Released . | . . Fabnet Peak Effective % . | . . Robots Rewired . | . . Allies Hacked . | . . Hacks Repelled . | . . Allies | -11 -10 -------- Run | Yrd Mat Total Allies . | . . Largest Group . | . . Highest-Rated Group . | . . Highest-Rated Ally . | . . Total Orders . | . . Ally Attacks . | . . Total Damage . | . . Kills . | . . Allies Corrupted . | . . Allies Melted . | . . Intel | -11 -10 ------- Run | Yrd Mat Active Infowar (turns) . | . . Robot Analysis Total . | . . Derelict Logs Recovered . | . . Drone Launches . | . . Drone Recoveries . | . . Exploration | -11 -10 ------------- Run | Yrd Mat Turns Passed 462 | 43 419 Spaces Moved 261 | 34 227 Core 6 | 3 3 Treads . | . . Legs . | . . Wheels 255 | 31 224 Hover . | . . Flight . | . . Fastest Speed 50 | 50 90 Average Speed 91 | 86 91 Slowest Speed 250 | 90 250 Overloaded Moves . | . . Propulsion Burnouts . | . . Robots Hopped . | . . Potential Cave-ins . | . . Cave-ins Triggered . | . . Exploration Rate (%) 25 | 4 47 Regions Visited 1 Branch Regions . Pre-discovered Areas . | . . Known Exits Taken . | . . Unknown Exits Taken 1 | 1 . Scrap Searched . | . . Spaces Dug . | . . Terrain Destroyed 10 | . 10 Melee . | . . Projectile . | . . AOE 10 | . 10 Terrain Rammed . | . . Walls Destroyed . | . . Machines Disabled . | . . Actions | -11 -10 --------- Run | Yrd Mat Total 380 | 47 333 Wait 19 | . 19 Move 260 | 33 227 Hop . | . . Pick Up 17 | 8 9 Fast Attach . | . . Attach 12 | 6 6 Detach . | . . Swap . | . . Drop . | . . Fire 72 | . 72 Melee . | . . Ram . | . . Kick . | . . Crush . | . . Escape Stasis . | . . Rewire . | . . Trap . | . . Miscellaneous . | . . Route ------- -11/Scrapyard -10/Materials History --------- Turn | Location | Event 15 | -11/Scrapyard | Discovered new exit (range 15) 44 | -11/Scrapyard | Entered Materials 303 | -10/Materials | Build established: Mutant 392 | -10/Materials | Core integrity fell below 50% 434 | -10/Materials | Lost 7 parts (1p2n1u3w) 453 | -10/Materials | Core integrity fell below 20% 463 | -10/Materials | Destroyed by S-10 Pest with Light Assault Rifle Last Messages --------------- K-01 Serf collects debris. U-05 Engineer builds a Door. Acquired 4 matter. K-01 Serf collects debris. Acquired 2 matter. K-01 Serf collects debris. Ion Engine destroyed. Lgt. Assault Rifle destroyed. Assault Rifle destroyed. EM Pulse Gun destroyed. G-47 Trooper destroyed. G-34 Mercenary destroyed. K-01 Serf collects debris. K-01 Serf destroyed. Acquired Wheel. T-07 Excavator destroyed. R-06 Scavenger collects Wheel. R-06 Scavenger collects Lgt. Ion Engine. R-06 Scavenger collects Mining Laser. R-06 Scavenger sends out distress signal. Map ----- +----------------------------------------------------+ | ????????????????????????????????????# #???????? | | ????????????????????????????????????# #???????? | | ????????????????????????????????????# T??###### | | ????????????????????????????????????# #??# | | ????????????????????????????????????+ #??# | | ????????????????????????????????????# #??# """ | | ????????????????????????????????????# #??# """ | | ????????????????????????????????????# #??# """ | | ????????????????????????????######### #??# | | ????????????????????????????# # #??# | | ???????????????????????? ???# " # #??# | | ??????????????????# ??? ???# T # ######### | | ??????????????????# ?? ??# " # | | ??????????????????? ? ??# / | | ???????????????????? ??# # | | ????????????????????? ? # % [# ######### | | ?????????????????????? ? # [ # #???????? | | ???????????????????????#+##+# [[ # #???????? | | ???????????????????????# # # #???????? | | ???????????????????????#sss # # #???????? | | ???????????????????????# #+####### #???????? | | ???????????????????????# %#?????# #???????? | | ??????????????########## gm!#?????# ^ #???????? | | ??????????????# %## !####### #???????? | | ??????????????# """=# %= #???????? | | ??????????????# """=+ @ #???????? | | ??????????????# """*#=%! [ """ #???????? | | ??????????????# [%#*%= [ "Y" #???????? | | ???????????? ####+####%=! % #???????? | | ?????????? [== #??????? | | ?????????? + ????? | | ?????????? # ????? | | ?????????? #####+########### ####??????? | | ??????????? /???? ?????????? #?????????? | | ??????????"T" ????? ?????????? #?????????? | | ????????????"??????# ?????????? #?????????? | | ???????????????????# ? ?????????? #?????????? | | ???????????????????#?? ?????????? #?????????? | | ????????????????????? ?????????? ?????????? | | ????????????????????? ?????????? ?????????? | | ?????????????????????? ???????????T ??????????? | | ?????????????????????? ???????????????????????? | | ????????????????????????????????????????????????? | | ????????????????????????????????????????????????? | | ????????????????????????????????????????????????? | | ????????????????????????????????????????????????? | | ????????????????????????????????????????????????? | | ????????????????????????????????????????????????? | | ????????????????????????????????????????????????? | | ????????????????????????????????????????????????? | +----------------------------------------------------+ Best States ------------- Heat Dissipation 25 Energy Generation 10 Energy Capacity 250 Matter Stores 300 Matter Capacity 300 Sight Range 16 Terrain Scan Density 10 Evasion (%) 42 Targeting Accuracy 5 Item Schematics ----------------- None Robot Schematics ------------------ None Fabricated ------------ Nothing Repaired ---------- Nothing Studied --------- None Alien Tech Used ----------------- None Achievements -------------- None Challenges ------------ None Game ------ Seed VoltaicRecyclingFlail Manual? 0 Play Time 00:06:43 Cumulative 16.6 hours Start 2025.12.30 @ 17:19:09 End 2025.12.31 @ 09:07:30 Sessions 2 Manual Loads 0 Difficulty Rogue Special Mode None Game No. 49 Rogue 48 Adventurer 0 Explorer 1 Win Type - Total 0 Types 0/0/0/0/0/0/0/0/0/0 Lore% 8 Gallery% 17 Achievement% 13 Wizard Run 0 Options --------- Layout 1 ASCII 0 Keyboard 0 Movement Mouse Keybinds 0 Fullscreen 2 Font 24/Smallcaps Map View 50x35 Zoom Use 0% Tactical HUD 0 Map Filters NONE Filters NONE Steam 1 RUN: 8d036d42-5aaa-404b-a882-a18fe2795aeb